bitfinex/quotes_BTCUSD_20240820
["timestamp","ask_amount","ask_price","bid_price","bid_amount"]
[1724194815932,0.26888352,59514.0,59513.0,0.0009042]
[1724194816161,0.33458352,59514.0,59513.0,0.0009042]
[1724194817800,0.19278352,59514.0,59513.0,0.0009042]
[1724194817993,0.133994,59514.0,59513.0,0.0009042]
[1724194820320,0.133994,59514.0,59513.0,0.06563633]
[1724194820874,0.133994,59514.0,59513.0,0.0009042]
[1724194823538,0.211294,59514.0,59513.0,0.0009042]
[1724194824852,0.16797782,59514.0,59513.0,0.0009042]
[1724194825055,0.2112966,59514.0,59513.0,0.0009042]
[1724194825642,0.2758966,59514.0,59513.0,0.0009042]
[1724194826306,0.27589627,59514.0,59513.0,0.0009042]
[1724194828475,0.23257782,59514.0,59513.0,0.0009042]
[1724194828679,0.27589629,59514.0,59513.0,0.0009042]
[1724194830358,0.23257782,59514.0,59513.0,0.0009042]
[1724194830555,0.27589605,59514.0,59513.0,0.0009042]
[1724194830800,0.19859605,59514.0,59513.0,0.0009042]
[1724194830999,0.13399605,59514.0,59513.0,0.0009042]
[1724194831385,0.13399605,59514.0,59513.0,0.1689342]
[1724194831724,0.13399605,59514.0,59513.0,0.69910603]
[1724194832869,0.13399605,59514.0,59513.0,0.2863342]
[1724194833891,0.09067782,59514.0,59513.0,0.1183042]
[1724194834113,0.13398836,59514.0,59513.0,0.0009042]
[1724194835062,0.19448836,59514.0,59513.0,0.0009042]
[1724194835298,0.27288836,59514.0,59513.0,0.0009042]
[1724194839371,0.37288836,59514.0,59513.0,0.0009042]
[1724194841388,0.37290222,59514.0,59513.0,0.0009042]
[1724194841800,0.32957782,59514.0,59513.0,0.0009042]
[1724194841978,0.3729011,59514.0,59513.0,0.0009042]
[1724194842211,0.32957782,59514.0,59513.0,0.0009042]
[1724194842412,0.37290119,59514.0,59513.0,0.0009042]
[1724194845676,0.37269896,59514.0,59513.0,0.0009042]
[1724194846078,0.37269785,59514.0,59513.0,0.0009042]
[1724194846814,0.40269785,59514.0,59513.0,0.0009042]
[1724194847896,0.39669785,59514.0,59513.0,0.0009042]
[1724194848091,0.39769785,59514.0,59513.0,0.0069042]
[1724194848471,0.39869785,59514.0,59513.0,0.0069042]
[1724194848674,0.42269785,59514.0,59513.0,0.0069042]
[1724194848875,0.53666979,59514.0,59513.0,0.0069042]
[1724194849098,0.53566979,59514.0,59513.0,0.0069042]
[1724194849307,0.54166979,59514.0,59513.0,0.0069042]
[1724194849485,0.70969679,59514.0,59513.0,0.0009042]
[1724194849688,1.38380679,59514.0,59513.0,0.0009042]
[1724194849918,1.38580679,59514.0,59513.0,0.0019042]
[1724194850109,1.385798,59514.0,59513.0,0.0019042]
[1724194850367,1.383798,59514.0,59513.0,0.0009042]
[1724194850550,1.385798,59514.0,59513.0,0.0009042]
[1724194850749,1.379798,59514.0,59513.0,0.0009042]
[1724194850944,1.379798,59514.0,59496.0,0.0009031]
[1724194850945,0.03059559,59497.0,59496.0,0.0009031]
[1724194851119,0.2252113,59497.0,59496.0,0.0009031]
[1724194851520,0.32100906,59497.0,59496.0,0.0009031]
[1724194852669,0.32700906,59497.0,59496.0,0.0009031]
[1724194852874,0.32800906,59497.0,59496.0,0.0019031]
[1724194853485,0.32700906,59497.0,59496.0,0.0009031]
[1724194853713,0.32800906,59497.0,59496.0,0.0009031]
[1724194853927,0.28469559,59497.0,59496.0,0.0009031]
[1724194854133,0.32700562,59497.0,59496.0,0.0009031]
[1724194854543,0.32200562,59497.0,59496.0,0.0009031]
[1724194854746,0.33000562,59497.0,59496.0,0.0009031]
[1724194854950,0.32200562,59497.0,59496.0,0.0009031]
[1724194855485,0.32600562,59497.0,59496.0,0.0009031]
[1724194855692,0.32500562,59497.0,59496.0,0.0009031]
[1724194855892,0.32500562,59497.0,59496.0,0.0019031]
[1724194855893,0.32600562,59497.0,59496.0,0.0019031]
[1724194858850,0.28269559,59497.0,59496.0,0.0019031]
[1724194859057,0.32601744,59497.0,59496.0,0.0019031]
[1724194859462,0.24441744,59497.0,59496.0,0.0019031]
[1724194859687,0.14891744,59497.0,59496.0,0.0019031]
[1724194859918,0.04891744,59497.0,59496.0,0.0019031]
[1724194861082,0.04891673,59497.0,59496.0,0.0019031]
[1724194861485,0.00559559,59497.0,59496.0,0.0019031]
[1724194861708,0.04891688,59497.0,59496.0,0.0019031]
[1724194862331,0.04891688,59497.0,59496.0,0.1194031]
[1724194862803,0.04891688,59497.0,59496.0,0.27073372]
[1724194862804,0.04832129,59497.0,59496.0,0.27073372]
[1724194862982,0.04832129,59497.0,59496.0,0.2587031]
[1724194862983,0.02099222,59497.0,59496.0,0.2587031]
[1724194863184,0.005,59497.0,59496.0,0.2587031]
[1724194863593,0.01939663,59497.0,59496.0,0.2577031]
[1724194863797,0.01639663,59497.0,59496.0,0.2587031]
[1724194863969,0.01639663,59497.0,59496.0,0.0810031]
[1724194863970,0.01699222,59497.0,59496.0,0.0810031]
[1724194864177,0.01639663,59497.0,59496.0,0.0810031]
[1724194864376,0.01699222,59497.0,59496.0,0.0810031]
[1724194865114,0.01700244,59497.0,59496.0,0.0810031]
[1724194866403,0.07583547,59497.0,59496.0,0.0810031]
[1724194866611,0.0449458,59497.0,59496.0,0.0810031]
[1724194867018,0.01700244,59497.0,59496.0,0.0810031]
[1724194867423,0.01700244,59497.0,59496.0,0.0019031]
[1724194867632,0.07980244,59497.0,59496.0,0.0019031]
[1724194867827,0.16657883,59497.0,59496.0,0.0019031]
[1724194868045,0.10775264,59497.0,59496.0,0.0019031]
[1724194868213,0.07980487,59497.0,59496.0,0.0019031]
[1724194868436,0.10775264,59497.0,59496.0,0.0019031]
[1724194868637,0.06439559,59497.0,59496.0,0.0019031]
[1724194868836,0.10775254,59497.0,59496.0,0.0019031]
[1724194871919,0.19055254,59497.0,59496.0,0.0019031]
[1724194876612,0.29055254,59497.0,59496.0,0.0019031]
[1724194876837,0.29055711,59497.0,59496.0,0.0019031]
[1724194880777,0.24719559,59497.0,59496.0,0.0019031]
[1724194880973,0.29056076,59497.0,59496.0,0.0019031]
[1724194881499,0.14496076,59497.0,59496.0,0.0019031]
[1724194881697,0.04496076,59497.0,59496.0,0.0019031]
[1724194882487,0.04496076,59497.0,59496.0,0.2019031]
[1724194882691,0.04496076,59497.0,59496.0,0.24577828]
[1724194882692,0.04436517,59497.0,59496.0,0.24577828]
[1724194882959,0.04496076,59497.0,59496.0,0.24577828]
[1724194884532,0.04496076,59497.0,59496.0,0.2019031]
[1724194884895,0.04500726,59497.0,59496.0,0.2019031]
[1724194889419,0.04500396,59497.0,59496.0,0.2019031]
[1724194892533,0.04440837,59497.0,59496.0,0.2019031]
[1724194892949,0.04440837,59497.0,59496.0,0.3699811]
[1724194893163,0.04440837,59497.0,59496.0,0.88081052]
[1724194893417,0.04440289,59497.0,59496.0,1.21696752]
[1724194893619,0.07533192,59497.0,59496.0,1.21696752]
[1724194893946,0.04440289,59497.0,59496.0,1.26741857]
[1724194894097,0.01542552,59497.0,59496.0,1.26641857]
[1724194895308,0.01642552,59497.0,59496.0,1.27841857]
[1724194895942,0.01642552,59497.0,59496.0,1.26741857]
[1724194896138,0.01542552,59497.0,59496.0,1.26641857]
[1724194896343,0.01542552,59497.0,59496.0,1.60297998]
[1724194896523,0.01642552,59497.0,59496.0,1.60397998]
[1724194896725,0.01642552,59497.0,59496.0,1.61797998]
[1724194897098,0.04440289,59497.0,59496.0,1.56752893]
[1724194897294,0.01642552,59497.0,59496.0,1.60595489]
[1724194897502,0.01642485,59497.0,59496.0,1.4423521]
[1724194897705,0.01642485,59497.0,59496.0,1.89120067]
[1724194897907,0.01642529,59497.0,59496.0,1.89120067]
[1724194898245,0.01642529,59497.0,59496.0,1.51802868]
[1724194899106,0.01742529,59497.0,59496.0,1.4563521]
[1724194900096,0.01742529,59497.0,59496.0,1.5067632]
[1724194900311,0.01742529,59497.0,59496.0,1.4563521]
[1724194900510,0.002,59497.0,59496.0,1.4563521]
[1724194900912,0.01742529,59497.0,59496.0,1.4563521]
[1724194901117,0.04540239,59497.0,59496.0,1.50675875]
[1724194901321,0.01742529,59497.0,59496.0,1.50675875]
[1724194901520,0.002,59497.0,59496.0,1.50675875]
[1724194901748,0.002,59497.0,59496.0,2.01268408]
[1724194901948,0.002,59497.0,59496.0,1.91178197]
[1724194902325,0.002,59497.0,59496.0,2.03775721]
[1724194902525,0.01742832,59497.0,59496.0,2.03775721]
[1724194902775,0.01742832,59497.0,59496.0,1.91178197]
[1724194902974,0.01742832,59497.0,59496.0,1.93030588]
[1724194903187,0.01742832,59497.0,59496.0,1.93029019]
[1724194903619,0.01742832,59497.0,59496.0,1.82952108]
[1724194903816,0.01742832,59497.0,59496.0,1.90510111]
[1724194904021,0.01742832,59497.0,59496.0,1.82952108]
[1724194904222,0.01742832,59497.0,59496.0,1.53192358]
[1724194904818,0.01742832,59497.0,59496.0,1.90508439]
[1724194905024,0.01742832,59497.0,59496.0,1.90508688]
[1724194905227,0.01742832,59497.0,59496.0,1.4563521]
[1724194905406,0.01742832,59497.0,59496.0,1.53192617]
[1724194905976,0.01742444,59497.0,59496.0,1.53192617]
[1724194906179,0.01742444,59497.0,59496.0,1.4563521]
[1724194909202,0.01742444,59497.0,59496.0,1.50672029]
[1724194910068,0.01742576,59497.0,59496.0,1.50672029]
[1724194911100,0.01742576,59497.0,59496.0,1.3924521]
[1724194914087,0.01742528,59497.0,59496.0,1.3924521]
[1724194917432,0.01742528,59497.0,59496.0,1.3099521]
[1724194917649,0.04541014,59497.0,59496.0,1.3099521]
[1724194917855,0.01742804,59497.0,59496.0,1.3099521]
[1724194918062,0.04541002,59497.0,59496.0,1.3099521]
[1724194918263,0.017428,59497.0,59496.0,1.3099521]
[1724194918436,0.04541002,59497.0,59496.0,1.3099521]
[1724194919125,0.002,59497.0,59496.0,1.3099521]
[1724194919322,0.04540917,59497.0,59496.0,1.3099521]
[1724194919527,0.04540917,59497.0,59496.0,1.99713135]
[1724194919732,0.0174277,59497.0,59496.0,2.39545482]
[1724194919936,0.0174277,59497.0,59496.0,2.31992457]
[1724194920546,0.002,59497.0,59496.0,2.31992457]
[1724194920725,0.01742774,59497.0,59496.0,2.31752016]
[1724194921064,0.01642774,59497.0,59496.0,2.3035161]
[1724194921269,0.01542774,59497.0,59496.0,2.3025161]
[1724194921479,0.01642774,59497.0,59496.0,2.3165161]
[1724194922074,0.01642774,59497.0,59496.0,2.41722657]
[1724194923115,0.01742774,59497.0,59496.0,2.43022657]
[1724194923894,0.01742774,59497.0,59496.0,2.32992051]
[1724194924060,0.01742774,59497.0,59496.0,2.33192051]
[1724194924477,0.05891584,59506.0,59498.0,1.176507]
[1724194924677,0.00059559,59509.0,59508.0,0.504133]
[1724194924678,0.05891584,59509.0,59508.0,0.504133]
[1724194924837,0.12131584,59510.0,59509.0,0.504124]
[1724194925038,0.16470652,59510.0,59509.0,0.840207]
[1724194925242,0.10579068,59510.0,59509.0,0.9695872]
[1724194925663,0.10579032,59510.0,59509.0,0.9695872]
[1724194926705,0.04339032,59510.0,59509.0,0.9695872]
[1724194927601,0.04339032,59510.0,59509.0,0.9805872]
[1724194928021,0.04339032,59510.0,59509.0,0.851207]
[1724194928234,0.04339032,59510.0,59509.0,1.18729]
[1724194928463,0.0154204,59510.0,59509.0,1.18729]
[1724194929307,0.01521816,59510.0,59509.0,1.18729]
[1724194929518,0.01521816,59510.0,59509.0,1.30479]
[1724194929731,0.01521816,59510.0,59509.0,1.44786075]
[1724194930581,0.0636,59512.0,59511.0,0.84018]
[1724194930789,0.09156784,59512.0,59511.0,0.84018]
[1724194932028,0.0636,59512.0,59511.0,0.84018]
[1724194932178,0.09157093,59512.0,59511.0,0.98386338]
[1724194932607,0.09157093,59512.0,59511.0,0.99286338]
[1724194932811,0.09357093,59512.0,59511.0,0.99286338]
[1724194933023,0.09357092,59512.0,59511.0,0.99286338]
[1724194936941,0.0656,59512.0,59511.0,0.99286338]
[1724194937142,0.0935695,59512.0,59511.0,0.99286338]
[1724194937349,0.0656,59512.0,59511.0,0.99286338]
[1724194937591,0.02997101,59512.0,59511.0,1.07586338]
[1724194937761,0.002,59512.0,59511.0,0.99286338]
[1724194938285,0.002,59512.0,59511.0,1.32893538]
[1724194939119,0.002,59512.0,59511.0,1.31993538]
[1724194939673,0.02879304,59513.0,59512.0,0.840165]
[1724194939846,0.02879304,59513.0,59512.0,1.11474524]
[1724194940907,0.000822,59513.0,59512.0,1.12874524]
[1724194941105,0.02879086,59513.0,59512.0,1.12874524]
[1724194941457,0.04421077,59513.0,59512.0,1.12874524]
[1724194942183,0.04421077,59513.0,59512.0,1.13274524]
[1724194944058,0.04421077,59513.0,59512.0,1.46881124]
[1724194945107,0.04420714,59513.0,59512.0,1.46881124]
[1724194946671,0.04420714,59513.0,59512.0,1.311731]
[1724194947892,0.18800273,59513.0,59512.0,0.858165]
[1724194948092,0.18740714,59513.0,59512.0,0.975665]
[1724194949330,0.24630017,59513.0,59512.0,0.975665]
[1724194949774,0.24689576,59513.0,59512.0,0.975665]
[1724194950150,0.24630017,59513.0,59512.0,0.975665]
[1724194950586,0.24629161,59513.0,59512.0,0.975665]
[1724194952012,0.18740351,59513.0,59512.0,0.975665]
[1724194952211,0.24629161,59513.0,59512.0,0.975665]
[1724194952639,0.24629161,59513.0,59512.0,1.33577708]
[1724194952640,0.04420351,59513.0,59512.0,1.33577708]
[1724194952893,0.04420351,59513.0,59512.0,1.38614406]
[1724194953091,0.04420722,59513.0,59512.0,1.05007806]
[1724194954128,0.04420722,59513.0,59512.0,1.38614406]
[1724194954548,0.04420722,59513.0,59512.0,1.05007806]
[1724194954970,0.04420722,59513.0,59512.0,1.0501239]
[1724194957123,0.04420926,59513.0,59512.0,1.0501239]
[1724194957946,0.19300485,59513.0,59512.0,0.186033]
[1724194958286,0.19300485,59513.0,59512.0,0.018]
[1724194958896,0.19300485,59513.0,59512.0,0.186033]
[1724194960166,0.19300485,59513.0,59512.0,0.018]
[1724194960538,0.39300485,59513.0,59512.0,0.018]
[1724194961140,0.3775898,59513.0,59512.0,0.018]
[1724194961342,0.39301153,59513.0,59512.0,0.018]
[1724194961538,0.39301243,59513.0,59512.0,0.018]
[1724194963246,0.44078387,59513.0,59512.0,0.018]
[1724194963438,0.39301243,59513.0,59512.0,0.018]
[1724194963823,0.49301243,59513.0,59512.0,0.018]
[1724194964217,0.49301243,59513.0,59512.0,0.004]
[1724194964628,0.49301243,59513.0,59512.0,0.01]
[1724194965270,0.00059559,59511.0,59510.0,0.0009042]
[1724194965473,0.18329043,59511.0,59510.0,0.0009042]
[1724194966782,0.18729043,59511.0,59510.0,0.0009042]
[1724194966927,0.18329043,59511.0,59510.0,0.0009042]
[1724194967909,0.18329043,59511.0,59510.0,0.0089042]
[1724194968267,0.18729043,59511.0,59510.0,0.0089042]
[1724194970943,0.04739484,59511.0,59510.0,0.30708262]
[1724194971093,0.07831215,59511.0,59510.0,0.64315962]
[1724194971287,0.04739484,59511.0,59510.0,0.64315962]
[1724194971519,0.04739484,59511.0,59510.0,0.6305192]
[1724194971744,0.01942205,59511.0,59510.0,0.6305192]
[1724194971918,0.01942205,59511.0,59510.0,0.9665962]
[1724194972141,0.01942205,59511.0,59510.0,1.0387962]
[1724194972339,0.04739484,59511.0,59510.0,1.0387962]
[1724194972542,0.01542205,59511.0,59510.0,1.0527962]
[1724194973028,0.01642205,59511.0,59510.0,1.0577962]
[1724194973230,0.01642205,59511.0,59510.0,1.0527962]
[1724194973619,0.01642205,59511.0,59510.0,1.0577962]
[1724194973620,0.01742205,59511.0,59510.0,1.0577962]
[1724194973824,0.01742205,59511.0,59510.0,1.0437962]
[1724194973952,0.04538361,59511.0,59510.0,1.0437962]
[1724194974154,0.01741798,59511.0,59510.0,1.0577962]
[1724194974577,0.01741798,59511.0,59510.0,1.0437962]
[1724194974783,0.01541798,59511.0,59510.0,1.0387962]
[1724194974987,0.01541798,59511.0,59510.0,1.0457962]
[1724194975187,0.01641798,59511.0,59510.0,1.0597962]
[1724194977804,0.01641798,59511.0,59510.0,0.9795962]
[1724194979078,0.01641798,59511.0,59510.0,0.6435192]
[1724194979312,0.01641798,59511.0,59510.0,0.3074422]
[1724194979313,0.16571353,59511.0,59510.0,0.3074422]
[1724194979545,0.19367906,59511.0,59510.0,0.3074422]
[1724194980320,0.19367906,59511.0,59510.0,0.0219042]
[1724194981140,0.15029559,59511.0,59510.0,0.0219042]
[1724194981375,0.19367941,59511.0,59510.0,0.0219042]
[1724194983999,0.25256453,59511.0,59510.0,0.0219042]
[1724194984204,0.19367941,59511.0,59510.0,0.0219042]
[1724194984433,0.19367941,59511.0,59510.0,0.1394042]
[1724194984627,0.25256329,59511.0,59510.0,0.1394042]
[1724194984954,0.19367941,59511.0,59510.0,0.1394042]
[1724194985152,0.19367442,59511.0,59510.0,0.1394042]
[1724194985306,0.19367451,59511.0,59510.0,0.1394042]
[1724194985511,0.04497451,59511.0,59510.0,0.3074422]
[1724194985711,0.01701196,59511.0,59510.0,0.6435192]
[1724194986137,0.07589853,59511.0,59510.0,0.6435192]
[1724194987853,0.07589853,59511.0,59510.0,0.5260192]
[1724194988128,0.04497451,59511.0,59510.0,0.0219042]
[1724194988273,0.01701196,59511.0,59510.0,0.1899422]
[1724194989061,0.41073656,59511.0,59510.0,0.0219042]
[1724194989271,0.41072789,59511.0,59510.0,0.0219042]
[1724194989891,0.40972789,59511.0,59510.0,0.0009042]
[1724194990134,0.40972789,59511.0,59510.0,0.0189042]
[1724194991100,0.38226584,59511.0,59510.0,0.0189042]
[1724194993508,0.38226452,59511.0,59510.0,0.0189042]
[1724194994946,0.18226452,59511.0,59510.0,0.0189042]
[1724194997934,0.18226452,59511.0,59510.0,0.1869422]
[1724194997935,0.04396452,59511.0,59510.0,0.1869422]
[1724194998148,0.04396979,59511.0,59510.0,0.25864542]
[1724194998345,0.0433742,59511.0,59510.0,0.25864542]
[1724194998748,0.04396979,59511.0,59510.0,0.25864542]
[1724194998973,0.04396979,59511.0,59510.0,0.1869422]
[1724194999149,0.0433742,59511.0,59510.0,0.1869422]
[1724194999354,0.0433742,59511.0,59510.0,0.5230192]
[1724194999849,0.01601028,59511.0,59510.0,0.5230192]
[1724195000622,0.07489238,59511.0,59510.0,0.5230192]
[1724195001040,0.04396979,59511.0,59510.0,0.5230192]
[1724195001293,0.07489375,59511.0,59510.0,0.5230192]
[1724195001486,0.07489375,59511.0,59510.0,0.1869422]
[1724195001769,0.04396979,59511.0,59510.0,0.1869422]
[1724195002008,0.07489539,59511.0,59510.0,0.1869422]
[1724195002222,0.09481172,59511.0,59510.0,0.1869422]
[1724195002398,0.18166585,59511.0,59510.0,0.1869422]
[1724195002625,0.12277385,59511.0,59510.0,0.1869422]
[1724195003725,0.04337826,59511.0,59510.0,0.5230192]
[1724195003928,0.0743113,59511.0,59510.0,0.5230192]
[1724195004808,0.04337826,59511.0,59510.0,0.5230192]
[1724195005041,0.01541613,59511.0,59510.0,0.5873192]
[1724195005467,0.04337826,59511.0,59510.0,0.96622869]
[1724195005717,0.01541613,59511.0,59510.0,1.04432869]
[1724195005923,0.04337826,59511.0,59510.0,1.38040569]
[1724195006133,0.000822,59512.0,59511.0,1.176252]
[1724195006347,0.01624404,59512.0,59511.0,1.9300956]
[1724195006552,0.01624404,59512.0,59511.0,2.31658924]
[1724195007406,0.01624404,59512.0,59511.0,2.33058924]
[1724195007609,0.01624404,59512.0,59511.0,2.33258924]
[1724195007835,0.01624404,59512.0,59511.0,2.31418483]
[1724195008169,0.01724404,59512.0,59511.0,2.33618483]
[1724195008408,0.01724404,59512.0,59511.0,2.21014419]
[1724195008817,0.01724404,59512.0,59511.0,2.04770912]
[1724195009402,0.01724404,59512.0,59511.0,2.17374976]
[1724195010059,0.01724482,59512.0,59511.0,2.17374976]
[1724195010260,0.01724482,59512.0,59511.0,2.17415417]
[1724195010668,0.01704258,59512.0,59511.0,2.17415417]
[1724195010907,0.01704258,59512.0,59511.0,2.33772854]
[1724195011104,0.01704258,59512.0,59511.0,2.00165654]
[1724195012181,0.01704258,59512.0,59511.0,1.8756159]
[1724195012385,0.01704258,59512.0,59511.0,2.00165654]
[1724195013577,0.01704258,59512.0,59511.0,1.93875654]
[1724195014387,0.01704183,59512.0,59511.0,1.93875654]
[1724195014941,0.01704183,59512.0,59511.0,1.74956051]
[1724195015155,0.01704183,59512.0,59511.0,1.76623712]
[1724195015571,0.01704183,59512.0,59511.0,1.86706051]
[1724195015787,0.01704183,59512.0,59511.0,1.76623712]
[1724195016016,0.01704183,59512.0,59511.0,1.86706051]
[1724195018500,0.01704183,59512.0,59511.0,1.86704363]
[1724195018711,0.00161976,59512.0,59511.0,2.03192661]
[1724195018992,0.01703273,59512.0,59511.0,2.03192661]
[1724195019449,0.01703273,59512.0,59511.0,1.93110245]
[1724195021463,0.00161976,59512.0,59511.0,1.93110245]
[1724195022297,0.00161976,59512.0,59511.0,1.76712367]
[1724195022496,0.00161976,59512.0,59511.0,1.86797674]
[1724195022710,0.00161976,59512.0,59511.0,1.76712367]
[1724195022924,0.00161976,59512.0,59511.0,1.8679782]
[1724195023583,0.01703299,59512.0,59511.0,1.79054519]
[1724195024835,0.01703299,59512.0,59511.0,1.68972367]
[1724195025042,0.01703299,59512.0,59511.0,1.79055363]
[1724195025248,0.01703299,59512.0,59511.0,1.76531634]
[1724195025452,0.01703299,59512.0,59511.0,1.68972362]
[1724195025676,0.01703299,59512.0,59511.0,1.76531113]
[1724195025925,0.01703299,59512.0,59511.0,1.68972362]
[1724195026321,0.01703299,59512.0,59511.0,1.76528707]
[1724195026734,0.01703299,59512.0,59511.0,1.76528604]
[1724195026946,0.0170257,59512.0,59511.0,1.76528604]
[1724195027164,0.0170257,59512.0,59511.0,1.3166562]
[1724195027613,0.0170257,59512.0,59511.0,1.36701817]
[1724195028456,0.0170257,59512.0,59511.0,1.53099695]
[1724195029316,0.0170257,59512.0,59511.0,1.48063498]
[1724195030790,0.01703263,59512.0,59511.0,1.48063498]
[1724195030998,0.01703263,59512.0,59511.0,1.3166562]
[1724195031415,0.01703263,59512.0,59511.0,1.1991562]
[1724195031623,0.01703263,59512.0,59511.0,1.3166562]
[1724195034251,0.15943263,59512.0,59511.0,1.1991562]
[1724195034471,0.18738912,59512.0,59511.0,1.3166562]
[1724195034683,0.18738912,59512.0,59511.0,0.1909402]
[1724195034902,0.18738912,59512.0,59511.0,0.5270122]
[1724195035314,0.18739535,59512.0,59511.0,0.5270122]
[1724195035932,0.18739535,59512.0,59511.0,0.5242122]
[1724195036350,0.18739535,59512.0,59511.0,0.5229122]
[1724195038367,0.2462768,59512.0,59511.0,0.5229122]
[1724195038793,0.18739535,59512.0,59511.0,0.5229122]
[1724195038996,0.18739832,59512.0,59511.0,0.5229122]
[1724195039404,0.24628564,59512.0,59511.0,0.5229122]
[1724195040652,0.18799391,59512.0,59511.0,0.5229122]
[1724195041802,0.24688091,59512.0,59511.0,0.5229122]
[1724195042001,0.24628532,59512.0,59511.0,0.5229122]
[1724195042287,0.18739832,59512.0,59511.0,0.5229122]
[1724195042494,0.24628574,59512.0,59511.0,0.5229122]
[1724195045148,0.16698574,59512.0,59511.0,0.8589842]
[1724195045335,0.04499832,59512.0,59511.0,0.90943149]
[1724195045534,0.04499832,59512.0,59511.0,0.8589842]
[1724195045686,0.04500812,59512.0,59511.0,1.30774639]
[1724195045899,0.0170394,59512.0,59511.0,1.30774639]
[1724195046106,0.00161976,59512.0,59511.0,1.30774639]
[1724195046288,0.01703985,59512.0,59511.0,1.23207546]
[1724195047104,0.01703985,59512.0,59511.0,1.80778862]
[1724195047306,0.01703985,59512.0,59511.0,1.66904204]
[1724195048128,0.01703985,59512.0,59511.0,1.56814746]
[1724195048543,0.01703985,59512.0,59511.0,1.64381332]
[1724195049849,0.01703985,59512.0,59511.0,1.27072206]
[1724195050311,0.01703985,59512.0,59511.0,1.56814431]
[1724195050720,0.01703985,59512.0,59511.0,1.27073145]
[1724195051575,0.01703985,59512.0,59511.0,1.1950562]
[1724195051994,0.01703985,59512.0,59511.0,0.8589842]
[1724195053244,0.01703985,59512.0,59511.0,0.5229122]
[1724195053458,0.21483937,59512.0,59511.0,0.1868402]
[1724195053666,0.24340449,59512.0,59511.0,0.1868402]
[1724195053905,0.18450497,59512.0,59511.0,0.1868402]
[1724195054332,0.18450497,59512.0,59511.0,0.1755402]
[1724195054745,0.18450497,59512.0,59511.0,0.0229042]
[1724195055190,0.18450497,59512.0,59511.0,0.1909402]
[1724195055398,0.18450497,59512.0,59511.0,0.5270122]
[1724195057690,0.18451686,59512.0,59511.0,0.5270122]
[1724195057945,0.18451708,59512.0,59511.0,0.5270122]
[1724195059029,0.18451708,59512.0,59511.0,0.8630842]
[1724195059030,0.10812149,59512.0,59511.0,0.8630842]
[1724195059251,0.04502149,59512.0,59511.0,0.91353848]
[1724195059659,0.01704421,59512.0,59511.0,0.8630842]
[1724195061984,0.00161976,59512.0,59511.0,0.8630842]
[1724195062191,0.01704718,59512.0,59511.0,0.8630842]
[1724195066642,0.01704718,59512.0,59511.0,0.93876084]
[1724195067703,0.01764277,59512.0,59511.0,0.9805842]
[1724195067882,0.16454718,59512.0,59511.0,0.9805842]
[1724195068101,0.25145703,59512.0,59511.0,0.9805842]
[1724195068737,0.25205262,59512.0,59511.0,0.9805842]
[1724195068937,0.19312554,59512.0,59511.0,1.05626084]
[1724195069159,0.19252995,59512.0,59511.0,1.05626084]
[1724195069397,0.19312554,59512.0,59511.0,1.05626084]
[1724195069630,0.19312554,59512.0,59511.0,0.09858084]
[1724195069832,0.19312554,59512.0,59511.0,0.0229042]
[1724195070189,0.14971535,59512.0,59511.0,0.0229042]
[1724195070386,0.1931244,59512.0,59511.0,0.0229042]
[1724195070615,0.1931244,59512.0,59511.0,0.1909402]
[1724195071233,0.1931244,59512.0,59511.0,0.0229042]
[1724195072841,0.2161244,59512.0,59511.0,0.0229042]
[1724195074072,0.21612117,59512.0,59511.0,0.0229042]
[1724195077798,0.19312117,59512.0,59511.0,0.1909402]
[1724195078031,0.21612117,59512.0,59511.0,0.1909402]
[1724195078249,0.19252558,59512.0,59511.0,0.5270122]
[1724195078436,0.06802558,59512.0,59511.0,0.8630842]
[1724195078758,0.04502558,59512.0,59511.0,1.1991562]
[1724195079107,0.04502558,59512.0,59511.0,1.24961713]
[1724195079307,0.04502558,59512.0,59511.0,1.41205715]
[1724195079708,0.04502558,59512.0,59511.0,1.24961713]
[1724195079909,0.04004573,59512.0,59511.0,1.24961713]
[1724195080111,0.06802558,59512.0,59511.0,1.39091713]
[1724195081080,0.06802558,59512.0,59511.0,1.39090404]
[1724195084288,0.06802558,59512.0,59511.0,1.3404562]
[1724195084425,0.06802558,59512.0,59511.0,1.41612796]
[1724195085265,0.06802558,59512.0,59511.0,1.3166562]
[1724195086423,0.06802558,59512.0,59511.0,1.39232417]
[1724195087985,0.06802558,59512.0,59511.0,1.3166562]
[1724195089664,0.02461976,59512.0,59511.0,1.3166562]
[1724195089869,0.01704438,59512.0,59511.0,1.3166562]
[1724195090043,0.06802209,59512.0,59511.0,1.3166562]
[1724195093424,0.02461976,59512.0,59511.0,1.3166562]
[1724195093625,0.01704367,59512.0,59511.0,1.3166562]
[1724195093926,0.06800697,59512.0,59511.0,1.47867943]
[1724195094130,0.06800697,59512.0,59511.0,1.92743704]
[1724195094551,0.06780473,59512.0,59511.0,2.00493704]
[1724195095203,0.06780473,59512.0,59511.0,2.0930597]
[1724195095204,0.04480473,59512.0,59511.0,2.0930597]
[1724195095756,0.01683677,59512.0,59511.0,2.0930383]
[1724195097730,0.01683677,59512.0,59511.0,1.99215442]
[1724195097919,0.01683677,59512.0,59511.0,2.11825927]
[1724195098120,0.01683677,59512.0,59511.0,1.99215442]
[1724195098322,0.01683677,59512.0,59511.0,2.33063083]
[1724195098476,0.01683677,59512.0,59511.0,2.36434083]
[1724195098867,0.000822,59513.0,59512.0,1.54841141]
[1724195099063,0.01622747,59513.0,59512.0,2.90792869]
[1724195099350,0.01622747,59513.0,59512.0,2.90992869]
[1724195099481,0.01622747,59513.0,59512.0,2.23636518]
[1724195099482,0.000822,59513.0,59512.0,2.23636518]
[1724195099682,0.000822,59513.0,59512.0,2.23296077]
[1724195099887,0.000822,59513.0,59512.0,2.75519388]
[1724195100068,0.000822,59513.0,59512.0,2.75419388]
[1724195100279,0.000822,59513.0,59512.0,2.75319388]
[1724195100523,0.000822,59513.0,59512.0,2.23096077]
[1724195100720,0.000822,59513.0,59512.0,2.24496077]
[1724195100721,0.001822,59513.0,59512.0,2.24496077]
[1724195100946,0.000822,59513.0,59512.0,2.23096077]
[1724195101147,0.01622839,59513.0,59512.0,2.23136518]
[1724195101317,0.01722839,59513.0,59512.0,2.26136518]
[1724195101693,0.001822,59513.0,59512.0,2.26136518]
[1724195103832,0.001822,59513.0,59512.0,2.26132428]
[1724195104034,0.001822,59513.0,59512.0,2.25991987]
[1724195104301,0.001822,59513.0,59512.0,2.26132428]
[1724195105077,0.001822,59513.0,59512.0,2.25891987]
[1724195106305,0.01722714,59513.0,59512.0,2.25891987]
[1724195109217,0.01722714,59513.0,59512.0,1.92285387]
[1724195109420,0.01722714,59513.0,59512.0,1.85665387]
[1724195109636,0.01722714,59513.0,59512.0,1.98258042]
[1724195110577,0.01722714,59513.0,59512.0,1.89988042]
[1724195112336,0.01722714,59513.0,59512.0,1.73590164]
[1724195112739,0.01722714,59513.0,59512.0,1.60997509]
[1724195115314,0.01722714,59513.0,59512.0,1.61087929]
[1724195115939,0.001822,59513.0,59512.0,1.61087929]